[Event "22nd ETCC Women 2019"]
[Site "Batumi"]
[Date "2019.10.26"]
[Round "3.26"]
[White "Fataliyeva, Ulviyya"]
[Black "Trippold, Denise"]
[Result "1-0"]
[ECO "A06"]
[WhiteElo "2368"]
[BlackElo "2180"]
[Annotator "NA"]
[PlyCount "71"]
[EventDate "2019.10.24"]
[EventType "team-tourn"]
[EventCountry "GEO"]
[SourceTitle "playchess.com"]
[Source "ChessBase"]
[SourceQuality "1"]
[WhiteTeam "Azerbaijan"]
[BlackTeam "Austria"]
[WhiteTeamCountry "AZE"]
[BlackTeamCountry "AUT"]
[TimeControl "40/5400+30:1800+30"]

1. Nf3 {[%emt 0:00:00]} d5 {[%emt 0:00:00]} 2. e3 {[%emt 0:00:54]} Nf6 {[%emt 0:00:18]} 3. c4 {[%emt 0:00:08]} e6 {[%emt 0:00:06]} 4. b3 {[%emt 0:00:17]} c5 {[%emt 0:00:47]} 5. Bb2 {[%emt 0:03:23]} Nc6 {[%emt 0:00:37]} 6. Be2 {[%emt 0:07:20]} d4 {[%emt 0:08:45]} 7. exd4 {[%emt 0:00:46]} cxd4 {[%emt 0:00:06]} 8. d3 {[%emt 0:00:12]} Bc5 {[%emt 0:00:38]} 9. O-O {[%emt 0:00:53]} O-O {[%emt 0:00:43]} 10. Na3 {[%emt 0:00:57]} Re8 {[%emt 0:08:33]} 11. Nc2 {[%emt 0:00:41]} e5 {[%emt 0:01:14]} 12. Qd2 {[%emt 0:09:07]} a5 {[%emt 0:05:54]} 13. Ng5 {[%emt 0:03:44]} h6 {[%emt 0:08:57]} 14. Ne4 {[%emt 0:04:30]} Nxe4 {[%emt 0:00:08]} 15. dxe4 {[%emt 0:00:04]} Nb4 {[%emt 0:31:07]} 16. Ne1 {[%emt 0:03:08]} Qb6 {[%emt 0:01:04]} 17. a3 {[%emt 0:02:04]} Na6 {[%emt 0:00:04]} 18. Nd3 {[%emt 0:09:27]} Bd7 {[%emt 0:14:49]} 19. f4 {[%emt 0:12:45]} Rad8 {[%emt 0:00:40]} 20. fxe5 {[%emt 0:04:31]} Qxb3 {[%emt 0:00:02]} 21. Rab1 {[%emt 0:06:28]} Qa4 {[%emt 0:02:09]} 22. Nxc5 {[%emt 0:02:56]} Nxc5 {[%emt 0:00:01]} 23. Qxd4 {[%emt 0:06:44]} Bg4 {[%emt 0:01:56]} 24. Qf2 {[%emt 0:01:17]} Bxe2 {[%emt 0:01:08]} 25. Qxe2 {[%emt 0:01:30]} Ne6 {[%emt 0:05:45]} 26. Bc1 {[%emt 0:02:36]} Qc6 {[%emt 0:03:09]} 27. Qg4 {[%emt 0:03:07]} Rd4 {[%emt 0:02:21]} 28. Bxh6 {[%emt 0:01:50]} Rxe4 {[%emt 0:01:25]} 29. Qf5 {[%emt 0:01:54]} Re7 {[%emt 0:00:02]} 30. Bc1 {[%emt 0:03:56]} Nd4 {[%emt 0:01:35]} 31. Qh3 {[%emt 0:01:43]} R4xe5 {[%emt 0:00:51]} 32. Bb2 {[%emt 0:00:38]} Qxc4 {[%emt 0:00:07]} 33. Rbd1 {[%emt 0:00:35]} Ne2+ {[%emt 0:00:47]} 34. Kh1 {[%emt 0:00:04]} Re3 {[%emt 0:00:32]} 35. Rf3 {[%emt 0:03:00]} Nf4 {[%emt 0:00:39]} 36. Qg3 {[%emt 0:00:20]} 1-0

[Event "22nd ETCC Women 2019"]
[Site "Batumi"]
[Date "2019.10.26"]
[Round "3.26"]
[White "Bejatovic, Bojana"]
[Black "Machlik, Edit"]
[Result "1/2-1/2"]
[ECO "B12"]
[WhiteElo "2004"]
[BlackElo "2062"]
[Annotator "NA"]
[PlyCount "90"]
[EventDate "2019.10.24"]
[EventType "team-tourn"]
[EventCountry "GEO"]
[SourceTitle "playchess.com"]
[Source "ChessBase"]
[SourceQuality "1"]
[WhiteTeam "Macedonia"]
[BlackTeam "Norway"]
[WhiteTeamCountry "MKD"]
[BlackTeamCountry "NOR"]
[TimeControl "40/5400+30:1800+30"]

1. e4 {[%emt 0:00:00]} c6 {[%emt 0:00:00]} 2. d4 {[%emt 0:00:00]} d5 {[%emt 0:00:00]} 3. e5 {[%emt 0:00:00]} Bf5 {[%emt 0:00:21]} 4. Bd3 {[%emt 0:00:00]} Bxd3 {[%emt 0:00:33]} 5. Qxd3 {[%emt 0:00:00]} e6 {[%emt 0:00:41]} 6. Ne2 {[%emt 0:00:14]} Ne7 {[%emt 0:07:22]} 7. O-O {[%emt 0:01:37]} Nd7 {[%emt 0:02:04]} 8. Nd2 {[%emt 0:07:46]} c5 {[%emt 0:18:52]} 9. c3 {[%emt 0:00:50]} Nf5 {[%emt 0:08:28]} 10. Nf3 {[%emt 0:04:52]} Be7 {[%emt 0:16:18]} 11. g4 {[%emt 0:13:23]} Nh4 {[%emt 0:02:48]} 12. Nxh4 {[%emt 0:02:49]} Bxh4 {[%emt 0:00:05]} 13. f4 {[%emt 0:00:52]} cxd4 {[%emt 0:10:26]} 14. cxd4 {[%emt 0:05:43]} Qb6 {[%emt 0:00:25]} 15. Be3 {[%emt 0:04:16]} O-O-O {[%emt 0:03:38]} 16. a4 {[%emt 0:02:48]} Kb8 {[%emt 0:03:09]} 17. a5 {[%emt 0:14:28]} Qa6 {[%emt 0:00:26]} 18. Qd2 {[%emt 0:01:42]} Rc8 {[%emt 0:03:06]} 19. Nc3 {[%emt 0:06:09]} Be7 {[%emt 0:01:19]} 20. Na4 {[%emt 0:01:29]} Qb5 {[%emt 0:03:08]} 21. Nc3 Qb3 {[%emt 0:02:31]} 22. Qe2 {[%emt 0:11:20]} h5 {[%emt 0:06:26]} 23. f5 {[%emt 0:03:54]} hxg4 {[%emt 0:01:43]} 24. fxe6 {[%emt 0:00:32]} fxe6 {[%emt 0:00:31]} 25. Rf7 {[%emt 0:00:31]} Rce8 {[%emt 0:01:08]} 26. Nb5 {[%emt 0:06:06]} Rh3 {[%emt 0:02:34]} 27. Bf4 {[%emt 0:01:10]} g5 {[%emt 0:03:38]} 28. Bg3 {[%emt 0:01:50]} Qb4 {[%emt 0:00:36]} 29. Rd1 {[%emt 0:04:11]} Rhh8 {[%emt 0:00:31]} 30. Nd6 {[%emt 0:00:30]} Bxd6 {[%emt 0:01:20]} 31. exd6 {[%emt 0:00:32]} Rd8 {[%emt 0:00:35]} 32. Qxe6 {[%emt 0:01:22]} Qa4 {[%emt 0:00:36]} 33. Qxg4 {[%emt 0:01:15]} Rhe8 {[%emt 0:00:26]} 34. Re7 {[%emt 0:00:43]} Rf8 {[%emt 0:00:13]} 35. Rc1 {[%emt 0:01:11]} Ka8 {[%emt 0:00:38]} 36. Be5 {[%emt 0:02:47]} Nxe5 {[%emt 0:00:27]} 37. Rxe5 {[%emt 0:00:01]} a6 {[%emt 0:00:51]} 38. Rxd5 Qb3 {[%emt 0:00:18]} 39. Rdc5 {[%emt 0:01:39]} Qxb2 {[%emt 0:00:36]} 40. Rc8+ {[%emt 0:00:00]} Ka7 {[%emt 0:00:00]} 41. d7 {[%emt 0:15:26]} Rxd7 {[%emt 0:11:47]} 42. Qxd7 {[%emt 0:02:17]} Qf2+ 43. Kh1 Qf3+ {[%emt 0:00:33]} 44. Kg1 {[%emt 0:00:01]} Qf2+ {[%emt 0:01:02]} 45. Kh1 {[%emt 0:00:05]} Qf3+ {[%emt 0:00:18]} 1/2-1/2

[Event "22nd ETCC Women 2019"]
[Site "Batumi"]
[Date "2019.10.26"]
[Round "3.27"]
[White "Novkovic, Julia"]
[Black "Mammadova, Gulnar"]
[Result "0-1"]
[ECO "C03"]
[WhiteElo "2146"]
[BlackElo "2369"]
[Annotator "NA"]
[PlyCount "132"]
[EventDate "2019.10.24"]
[EventType "team-tourn"]
[EventCountry "GEO"]
[SourceTitle "playchess.com"]
[Source "ChessBase"]
[SourceQuality "1"]
[WhiteTeam "Austria"]
[BlackTeam "Azerbaijan"]
[WhiteTeamCountry "AUT"]
[BlackTeamCountry "AZE"]
[TimeControl "40/5400+30:1800+30"]

1. e4 {[%emt 0:00:00]} e6 {[%emt 0:00:00]} 2. d4 {[%emt 0:00:00]} d5 {[%emt 0:00:00]} 3. Nd2 {[%emt 0:00:00]} a6 {[%emt 0:00:00]} 4. Ngf3 {[%emt 0:01:08]} c5 {[%emt 0:00:01]} 5. dxc5 {[%emt 0:05:07]} Bxc5 {[%emt 0:00:21]} 6. Bd3 {[%emt 0:00:18]} Ne7 {[%emt 0:02:53]} 7. O-O {[%emt 0:03:22]} Nbc6 {[%emt 0:00:14]} 8. Nb3 {[%emt 0:03:02]} Ba7 {[%emt 0:01:14]} 9. c3 {[%emt 0:04:31]} dxe4 {[%emt 0:12:19]} 10. Bxe4 {[%emt 0:00:07]} Qxd1 {[%emt 0:00:17]} 11. Rxd1 {[%emt 0:00:05]} e5 {[%emt 0:00:19]} 12. Re1 {[%emt 0:04:26]} f6 {[%emt 0:01:41]} 13. Be3 {[%emt 0:00:12]} O-O {[%emt 0:03:16]} 14. Rad1 {[%emt 0:03:01]} Bb8 {[%emt 0:11:20]} 15. Bc5 {[%emt 0:04:19]} Re8 {[%emt 0:01:40]} 16. Bb6 {[%emt 0:23:57]} Ba7 {[%emt 0:08:06]} 17. Bxa7 {[%emt 0:03:00]} Rxa7 {[%emt 0:00:22]} 18. Rd6 {[%emt 0:02:42]} Bf5 {[%emt 0:04:20]} 19. Bxf5 {[%emt 0:04:28]} Nxf5 {[%emt 0:00:09]} 20. Rd7 {[%emt 0:00:13]} Re7 {[%emt 0:02:17]} 21. Red1 {[%emt 0:00:14]} b6 {[%emt 0:01:38]} 22. R7d5 {[%emt 0:01:25]} h5 {[%emt 0:04:45]} 23. h3 {[%emt 0:00:31]} Kf7 {[%emt 0:04:51]} 24. g4 {[%emt 0:03:35]} hxg4 {[%emt 0:01:51]} 25. hxg4 {[%emt 0:00:04]} Nh6 {[%emt 0:00:25]} 26. Nh2 {[%emt 0:00:23]} Kg6 {[%emt 0:06:44]} 27. Kg2 {[%emt 0:01:05]} Nf7 {[%emt 0:01:10]} 28. Nf3 {[%emt 0:01:14]} Nh6 {[%emt 0:00:54]} 29. Nh2 {[%emt 0:01:48]} e4 {[%emt 0:05:23]} 30. Re1 {[%emt 0:03:18]} Re6 {[%emt 0:01:54]} 31. Nd2 {[%emt 0:00:42]} Rae7 {[%emt 0:00:19]} 32. Nc4 {[%emt 0:00:11]} b5 {[%emt 0:01:34]} 33. Ne3 {[%emt 0:05:05]} Ne5 {[%emt 0:03:29]} 34. Kg3 {[%emt 0:03:13]} Nd3 {[%emt 0:05:42]} 35. Rb1 {[%emt 0:00:25]} Re5 {[%emt 0:03:10]} 36. Rd6 {[%emt 0:00:10]} R7e6 {[%emt 0:00:32]} 37. Rxe6 {[%emt 0:03:44]} Rxe6 {[%emt 0:00:02]} 38. Ng2 {[%emt 0:04:59]} f5 {[%emt 0:02:19]} 39. Rd1 {[%emt 0:08:58]} Kf6 {[%emt 0:05:26]} 40. Rd2 {[%emt 0:00:00]} g5 {[%emt 0:00:00]} 41. gxf5 {[%emt 0:03:04]} Nxf5+ {[%emt 0:03:55]} 42. Kh3 {[%emt 0:02:28]} Nf4+ {[%emt 0:12:21]} 43. Nxf4 {[%emt 0:00:06]} gxf4 {[%emt 0:00:03]} 44. Kg4 {[%emt 0:00:13]} Ke5 {[%emt 0:03:09]} 45. Kg5 {[%emt 0:02:30]} e3 {[%emt 0:03:31]} 46. Rd1 {[%emt 0:12:58]} Rd6 {[%emt 0:05:02]} 47. Re1 {[%emt 0:03:53]} Rd8 {[%emt 0:01:14]} 48. Ng4+ {[%emt 0:04:21]} Ke4 {[%emt 0:01:32]} 49. f3+ {[%emt 0:04:20]} Kxf3 {[%emt 0:00:03]} 50. Rf1+ {[%emt 0:00:04]} Ke2 {[%emt 0:01:58]} 51. Rxf4 {[%emt 0:00:07]} Ng3 {[%emt 0:02:10]} 52. a4 {[%emt 0:00:58]} Kd2 {[%emt 0:01:48]} 53. Nxe3 {[%emt 0:01:35]} Rg8+ {[%emt 0:00:57]} 54. Kh6 {[%emt 0:01:14]} Kxe3 {[%emt 0:00:05]} 55. Rb4 {[%emt 0:00:16]} Nf5+ {[%emt 0:00:44]} 56. Kh7 {[%emt 0:00:13]} Rg7+ {[%emt 0:01:23]} 57. Kh8 {[%emt 0:00:08]} bxa4 {[%emt 0:00:24]} 58. Rxa4 {[%emt 0:00:44]} Ra7 {[%emt 0:02:01]} 59. Ra5 {[%emt 0:01:19]} Ke4 {[%emt 0:01:21]} 60. b3 {[%emt 0:01:00]} Nd6 {[%emt 0:01:19]} 61. c4 {[%emt 0:01:07]} Nb7 {[%emt 0:00:35]} 62. Rd5 {[%emt 0:00:12]} a5 {[%emt 0:00:16]} 63. Kg7 {[%emt 0:01:03]} Nc5+ {[%emt 0:00:21]} 64. Kf6 {[%emt 0:00:39]} Nxb3 {[%emt 0:00:07]} 65. Rh5 {[%emt 0:00:49]} a4 {[%emt 0:00:20]} 66. c5 {[%emt 0:00:58]} a3 {[%emt 0:00:31]} 0-1

[Event "22nd ETCC Women 2019"]
[Site "Batumi"]
[Date "2019.10.26"]
[Round "3.27"]
[White "Johnsen, Sylvia"]
[Black "Manova, Ivana"]
[Result "1-0"]
[ECO "A25"]
[WhiteElo "1898"]
[BlackElo "1795"]
[Annotator "NA"]
[PlyCount "95"]
[EventDate "2019.10.24"]
[EventType "team-tourn"]
[EventCountry "GEO"]
[SourceTitle "playchess.com"]
[Source "ChessBase"]
[SourceQuality "1"]
[WhiteTeam "Norway"]
[BlackTeam "Macedonia"]
[WhiteTeamCountry "NOR"]
[BlackTeamCountry "MKD"]
[TimeControl "40/5400+30:1800+30"]

1. c4 {[%emt 0:00:00]} e5 {[%emt 0:00:00]} 2. Nc3 {[%emt 0:00:00]} Nc6 {[%emt 0:00:00]} 3. g3 {[%emt 0:00:00]} f5 {[%emt 0:00:16]} 4. Nf3 {[%emt 0:00:21]} Nf6 {[%emt 0:03:43]} 5. d4 {[%emt 0:00:30]} e4 {[%emt 0:02:20]} 6. d5 {[%emt 0:01:20]} exf3 {[%emt 0:12:03]} 7. dxc6 bxc6 {[%emt 0:07:38]} 8. exf3 {[%emt 0:00:26]} Be7 {[%emt 0:01:47]} 9. Bd3 {[%emt 0:08:08]} d5 {[%emt 0:04:28]} 10. cxd5 {[%emt 0:04:11]} cxd5 {[%emt 0:01:44]} 11. O-O {[%emt 0:01:34]} O-O {[%emt 0:01:28]} 12. Qc2 {[%emt 0:07:38]} Qd7 {[%emt 0:11:22]} 13. Bg5 {[%emt 0:06:50]} c6 {[%emt 0:07:50]} 14. Rfe1 {[%emt 0:05:21]} h6 {[%emt 0:04:19]} 15. Bxf6 {[%emt 0:00:41]} Bxf6 {[%emt 0:01:15]} 16. Rad1 {[%emt 0:01:51]} Qd6 {[%emt 0:06:27]} 17. f4 {[%emt 0:11:05]} Bd7 {[%emt 0:12:08]} 18. Na4 {[%emt 0:01:19]} Bd4 {[%emt 0:05:53]} 19. Rc1 {[%emt 0:08:00]} Rab8 {[%emt 0:03:07]} 20. b3 {[%emt 0:01:54]} c5 {[%emt 0:01:08]} 21. Nc3 {[%emt 0:00:35]} Kh8 {[%emt 0:02:19]} 22. Ne2 {[%emt 0:01:26]} Qf6 {[%emt 0:00:56]} 23. Nxd4 {[%emt 0:08:29]} cxd4 {[%emt 0:00:51]} 24. Re5 {[%emt 0:01:30]} Rbc8 {[%emt 0:03:17]} 25. Qb2 {[%emt 0:03:49]} Rxc1+ {[%emt 0:00:05]} 26. Qxc1 {[%emt 0:00:05]} Rc8 {[%emt 0:00:02]} 27. Qd2 {[%emt 0:00:48]} Qc6 {[%emt 0:06:01]} 28. Bxf5 {[%emt 0:06:12]} Qc3 {[%emt 0:00:05]} 29. Qxc3 {[%emt 0:05:52]} dxc3 {[%emt 0:00:05]} 30. Bc2 {[%emt 0:00:05]} Re8 {[%emt 0:01:17]} 31. Kf1 {[%emt 0:05:33]} Rxe5 {[%emt 0:01:02]} 32. fxe5 {[%emt 0:00:10]} d4 {[%emt 0:00:26]} 33. Ke1 {[%emt 0:00:13]} Bb5 {[%emt 0:00:25]} 34. Be4 Kg8 {[%emt 0:00:35]} 35. f4 {[%emt 0:01:23]} Kf7 {[%emt 0:00:28]} 36. f5 {[%emt 0:00:46]} a5 {[%emt 0:00:34]} 37. Kd1 {[%emt 0:00:52]} d3 {[%emt 0:00:24]} 38. Bd5+ {[%emt 0:00:32]} Ke7 {[%emt 0:00:33]} 39. Bc4 {[%emt 0:00:13]} Bc6 {[%emt 0:00:38]} 40. Bxd3 {[%emt 0:00:00]} h5 {[%emt 0:00:00]} 41. Kc2 {[%emt 0:00:30]} a4 {[%emt 0:01:50]} 42. b4 {[%emt 0:01:21]} a3 {[%emt 0:02:36]} 43. Kxc3 {[%emt 0:05:25]} Bd5 {[%emt 0:05:16]} 44. b5 Bxa2 45. Kb4 {[%emt 0:00:37]} Bd5 {[%emt 0:01:10]} 46. Kxa3 {[%emt 0:00:06]} Kd7 {[%emt 0:00:30]} 47. Kb4 {[%emt 0:00:14]} g6 {[%emt 0:01:07]} 48. Kc5 {[%emt 0:00:49]} 1-0

[Event "22nd ETCC Women 2019"]
[Site "Batumi"]
[Date "2019.10.26"]
[Round "3.28"]
[White "Mamedjarova, Turkan"]
[Black "Teuschler, Barbara"]
[Result "1-0"]
[ECO "D20"]
[WhiteElo "2314"]
[BlackElo "2136"]
[Annotator "NA"]
[PlyCount "103"]
[EventDate "2019.10.24"]
[EventType "team-tourn"]
[EventCountry "GEO"]
[SourceTitle "playchess.com"]
[Source "ChessBase"]
[SourceQuality "1"]
[WhiteTeam "Azerbaijan"]
[BlackTeam "Austria"]
[WhiteTeamCountry "AZE"]
[BlackTeamCountry "AUT"]
[TimeControl "40/5400+30:1800+30"]

1. d4 {[%emt 0:00:00]} d5 {[%emt 0:00:00]} 2. c4 {[%emt 0:00:00]} dxc4 {[%emt 0:00:00]} 3. e4 {[%emt 0:00:24]} e5 {[%emt 0:00:00]} 4. Nf3 {[%emt 0:00:30]} exd4 {[%emt 0:00:03]} 5. Bxc4 {[%emt 0:00:15]} Nc6 {[%emt 0:00:42]} 6. O-O {[%emt 0:00:31]} Be6 {[%emt 0:00:23]} 7. Bb5 {[%emt 0:00:10]} Bc5 {[%emt 0:01:37]} 8. b4 {[%emt 0:01:37]} Bb6 {[%emt 0:00:06]} 9. a4 {[%emt 0:00:27]} a6 {[%emt 0:00:06]} 10. Bxc6+ {[%emt 0:00:28]} bxc6 {[%emt 0:00:01]} 11. a5 {[%emt 0:00:10]} Ba7 {[%emt 0:00:01]} 12. Bb2 {[%emt 0:00:43]} Nf6 {[%emt 0:00:06]} 13. Bxd4 {[%emt 0:06:44]} Nxe4 {[%emt 0:01:23]} 14. Re1 {[%emt 0:13:34]} Ng5 {[%emt 0:02:20]} 15. Nxg5 {[%emt 0:08:44]} Bxd4 {[%emt 0:00:19]} 16. Nxe6 {[%emt 0:12:56]} fxe6 {[%emt 0:00:02]} 17. Ra2 {[%emt 0:07:17]} O-O {[%emt 0:01:50]} 18. Rd2 {[%emt 0:02:09]} e5 {[%emt 0:02:01]} 19. Nc3 {[%emt 0:05:06]} Qd6 {[%emt 0:21:49]} 20. Qb3+ {[%emt 0:02:13]} Kh8 {[%emt 0:01:21]} 21. Ne4 {[%emt 0:00:21]} Qd5 {[%emt 0:08:36]} 22. Qh3 {[%emt 0:09:19]} Rae8 {[%emt 0:18:06]} 23. Qd3 {[%emt 0:03:55]} Qb5 {[%emt 0:11:12]} 24. Qxb5 {[%emt 0:00:39]} cxb5 {[%emt 0:00:31]} 25. Rc2 {[%emt 0:02:14]} Re6 {[%emt 0:09:38]} 26. Rxc7 {[%emt 0:00:42]} h6 {[%emt 0:00:49]} 27. Re2 {[%emt 0:02:12]} Kg8 {[%emt 0:03:00]} 28. h3 {[%emt 0:04:06]} Rf7 {[%emt 0:04:08]} 29. Rec2 {[%emt 0:01:32]} Rf4 {[%emt 0:02:22]} 30. Re2 {[%emt 0:02:41]} Rf7 {[%emt 0:04:33]} 31. Rc8+ {[%emt 0:00:12]} Rf8 {[%emt 0:01:21]} 32. Rec2 {[%emt 0:00:30]} Rxc8 {[%emt 0:01:14]} 33. Rxc8+ {[%emt 0:00:04]} Kf7 {[%emt 0:00:18]} 34. Kf1 {[%emt 0:00:11]} Re7 {[%emt 0:02:47]} 35. Ke2 {[%emt 0:02:12]} Ke6 {[%emt 0:00:55]} 36. Kd3 {[%emt 0:02:42]} Rd7 {[%emt 0:02:31]} 37. Rc6+ {[%emt 0:00:57]} Kf5 {[%emt 0:00:20]} 38. Ng3+ {[%emt 0:01:07]} Kg5 {[%emt 0:01:27]} 39. Ke2 {[%emt 0:00:32]} Rf7 {[%emt 0:00:50]} 40. Ne4+ {[%emt 0:00:00]} Kf4 {[%emt 0:00:00]} 41. Nd6 {[%emt 0:03:17]} Rd7 {[%emt 0:08:15]} 42. g3+ {[%emt 0:01:10]} Kg5 {[%emt 0:00:08]} 43. Ne4+ {[%emt 0:01:01]} Kh5 {[%emt 0:01:22]} 44. Rxa6 {[%emt 0:04:28]} Rc7 {[%emt 0:00:26]} 45. Nd2 {[%emt 0:06:06]} e4 {[%emt 0:09:28]} 46. Rd6 {[%emt 0:01:50]} Bb2 {[%emt 0:04:32]} 47. Nxe4 {[%emt 0:00:58]} Rc4 {[%emt 0:00:17]} 48. Nc5 {[%emt 0:02:00]} Bd4 {[%emt 0:02:53]} 49. Ne6 {[%emt 0:01:18]} Bc3 {[%emt 0:00:24]} 50. Nf4+ {[%emt 0:01:43]} Kg5 {[%emt 0:00:06]} 51. Rd5+ {[%emt 0:00:12]} Kf6 {[%emt 0:00:12]} 52. Rxb5 {[%emt 0:00:04]} 1-0

[Event "22nd ETCC Women 2019"]
[Site "Batumi"]
[Date "2019.10.26"]
[Round "3.28"]
[White "Koskoska, Gabriela"]
[Black "Kyrkjebo, Hanna B."]
[Result "1-0"]
[ECO "A20"]
[WhiteElo "2036"]
[BlackElo "1949"]
[Annotator "NA"]
[PlyCount "97"]
[EventDate "2019.10.24"]
[EventType "team-tourn"]
[EventCountry "GEO"]
[SourceTitle "playchess.com"]
[Source "ChessBase"]
[SourceQuality "1"]
[WhiteTeam "Macedonia"]
[BlackTeam "Norway"]
[WhiteTeamCountry "MKD"]
[BlackTeamCountry "NOR"]
[TimeControl "40/5400+30:1800+30"]

1. c4 {[%emt 0:00:00]} e5 {[%emt 0:00:00]} 2. g3 {[%emt 0:00:13]} Nc6 {[%emt 0:00:00]} 3. Bg2 {[%emt 0:00:21]} g6 {[%emt 0:00:00]} 4. e4 {[%emt 0:01:44]} Bg7 {[%emt 0:00:18]} 5. Ne2 {[%emt 0:00:16]} d6 {[%emt 0:00:16]} 6. Nbc3 {[%emt 0:00:50]} Nge7 {[%emt 0:03:26]} 7. O-O {[%emt 0:04:00]} O-O {[%emt 0:00:59]} 8. d3 {[%emt 0:01:15]} Be6 {[%emt 0:03:38]} 9. Nd5 {[%emt 0:02:34]} Nd4 {[%emt 0:17:00]} 10. Nxd4 {[%emt 0:08:47]} exd4 {[%emt 0:00:17]} 11. b4 {[%emt 0:03:11]} c6 {[%emt 0:01:51]} 12. Nf4 {[%emt 0:02:40]} Bd7 {[%emt 0:00:33]} 13. a4 {[%emt 0:04:23]} Qc7 {[%emt 0:16:27]} 14. b5 {[%emt 0:11:03]} a6 {[%emt 0:03:18]} 15. bxc6 {[%emt 0:07:23]} bxc6 {[%emt 0:02:23]} 16. h4 {[%emt 0:10:49]} h5 {[%emt 0:03:15]} 17. c5 {[%emt 0:10:51]} Rfe8 {[%emt 0:07:44]} 18. cxd6 {[%emt 0:02:17]} Qxd6 {[%emt 0:01:00]} 19. Ba3 {[%emt 0:00:45]} Qe5 {[%emt 0:02:00]} 20. Rc1 {[%emt 0:01:02]} Nc8 {[%emt 0:19:33]} 21. Bh3 {[%emt 0:11:20]} Bxh3 {[%emt 0:02:10]} 22. Nxh3 {[%emt 0:00:02]} Qe6 {[%emt 0:01:42]} 23. Nf4 {[%emt 0:04:17]} Qd7 {[%emt 0:00:25]} 24. Qc2 {[%emt 0:03:21]} Na7 {[%emt 0:04:52]} 25. Rb1 {[%emt 0:01:07]} Reb8 {[%emt 0:06:08]} 26. Qc4 {[%emt 0:00:58]} Be5 {[%emt 0:01:56]} 27. Nxg6 {[%emt 0:01:30]} Bd6 {[%emt 0:01:30]} 28. Qxd4 {[%emt 0:03:19]} fxg6 {[%emt 0:00:32]} 29. Rxb8+ {[%emt 0:01:44]} Rxb8 {[%emt 0:00:19]} 30. Bxd6 {[%emt 0:01:08]} Rd8 {[%emt 0:00:22]} 31. Qc4+ {[%emt 0:00:28]} Kh7 {[%emt 0:00:20]} 32. Bc5 {[%emt 0:00:09]} a5 {[%emt 0:01:03]} 33. d4 {[%emt 0:00:27]} Nc8 {[%emt 0:00:34]} 34. Rb1 {[%emt 0:00:31]} Nd6 {[%emt 0:00:30]} 35. Bxd6 {[%emt 0:00:34]} Qxd6 {[%emt 0:00:22]} 36. Rb7+ {[%emt 0:00:22]} Rd7 {[%emt 0:00:28]} 37. e5 {[%emt 0:00:38]} Qe7 {[%emt 0:00:35]} 38. Rxd7 {[%emt 0:01:33]} Qxd7 {[%emt 0:00:07]} 39. Qc5 {[%emt 0:00:35]} Qb7 {[%emt 0:00:58]} 40. Kg2 {[%emt 0:00:00]} Kg7 {[%emt 0:00:00]} 41. e6 {[%emt 0:02:21]} Kg8 {[%emt 0:10:43]} 42. Qd6 {[%emt 0:04:36]} c5+ {[%emt 0:01:39]} 43. d5 {[%emt 0:00:11]} Qb1 {[%emt 0:01:38]} 44. Qd8+ {[%emt 0:03:13]} Kg7 {[%emt 0:01:04]} 45. Qe7+ {[%emt 0:00:22]} Kh8 {[%emt 0:01:51]} 46. Qf6+ {[%emt 0:02:35]} Kh7 {[%emt 0:00:54]} 47. Qf7+ {[%emt 0:00:24]} Kh8 {[%emt 0:00:13]} 48. e7 {[%emt 0:00:20]} Qe4+ {[%emt 0:00:27]} 49. Kh2 {[%emt 0:00:11]} 1-0

[Event "22nd ETCC Women 2019"]
[Site "Batumi"]
[Date "2019.10.26"]
[Round "3.29"]
[White "Batsiashvili, Nino"]
[Black "Shvayger, Yuliya"]
[Result "1-0"]
[ECO "A28"]
[WhiteElo "2422"]
[BlackElo "2336"]
[Annotator "NA"]
[PlyCount "121"]
[EventDate "2019.10.24"]
[EventType "team-tourn"]
[EventCountry "GEO"]
[SourceTitle "playchess.com"]
[Source "ChessBase"]
[SourceQuality "1"]
[WhiteTeam "Georgia"]
[BlackTeam "Israel"]
[WhiteTeamCountry "GEO"]
[BlackTeamCountry "ISR"]
[TimeControl "40/5400+30:1800+30"]

1. c4 {[%emt 0:00:00]} e5 {[%emt 0:00:00]} 2. Nc3 {[%emt 0:00:00]} Nf6 {[%emt 0:00:10]} 3. Nf3 {[%emt 0:00:00]} Nc6 {[%emt 0:00:11]} 4. e4 {[%emt 0:00:00]} Bb4 {[%emt 0:00:27]} 5. d3 {[%emt 0:00:00]} d6 {[%emt 0:00:07]} 6. a3 {[%emt 0:00:12]} Bc5 {[%emt 0:00:33]} 7. b4 {[%emt 0:00:19]} Bb6 {[%emt 0:00:02]} 8. Na4 {[%emt 0:00:35]} Bd4 {[%emt 0:00:02]} 9. Rb1 {[%emt 0:01:11]} Bg4 {[%emt 0:09:53]} 10. Be2 {[%emt 0:00:37]} Bxf3 {[%emt 0:00:25]} 11. Bxf3 {[%emt 0:00:02]} O-O {[%emt 0:00:50]} 12. O-O {[%emt 0:00:38]} a5 {[%emt 0:09:57]} 13. b5 {[%emt 0:03:41]} Nb8 {[%emt 0:00:12]} 14. Bd2 {[%emt 0:13:15]} Nbd7 {[%emt 0:03:53]} 15. Nc3 {[%emt 0:00:16]} Nc5 {[%emt 0:09:34]} 16. Be1 {[%emt 0:25:27]} Ne6 {[%emt 0:01:18]} 17. g3 {[%emt 0:00:22]} c6 {[%emt 0:12:12]} 18. Bg2 {[%emt 0:01:02]} Bc5 {[%emt 0:04:00]} 19. a4 {[%emt 0:01:45]} Nd4 {[%emt 0:01:12]} 20. Kh1 {[%emt 0:00:26]} Bb4 {[%emt 0:08:03]} 21. f4 {[%emt 0:02:42]} Nd7 {[%emt 0:00:05]} 22. Rb2 {[%emt 0:10:40]} Qe7 {[%emt 0:01:55]} 23. Ne2 {[%emt 0:08:43]} Nxe2 {[%emt 0:01:30]} 24. Rxe2 {[%emt 0:00:01]} Bxe1 {[%emt 0:00:09]} 25. Rexe1 {[%emt 0:00:08]} c5 {[%emt 0:02:35]} 26. Bh3 {[%emt 0:02:58]} Nb6 {[%emt 0:00:26]} 27. Rf2 {[%emt 0:01:44]} f6 {[%emt 0:01:35]} 28. Ref1 {[%emt 0:00:08]} g6 {[%emt 0:15:47]} 29. Bg2 {[%emt 0:09:21]} Kg7 {[%emt 0:00:39]} 30. h4 {[%emt 0:00:39]} Rad8 {[%emt 0:08:00]} 31. Bh3 {[%emt 0:02:13]} Na8 {[%emt 0:00:49]} 32. f5 {[%emt 0:01:07]} Nc7 {[%emt 0:02:39]} 33. fxg6 {[%emt 0:03:26]} hxg6 {[%emt 0:00:33]} 34. Qg4 {[%emt 0:00:15]} Ne8 {[%emt 0:04:44]} 35. b6 {[%emt 0:01:36]} Kh6 {[%emt 0:00:18]} 36. Qe6 {[%emt 0:01:34]} Qxe6 {[%emt 0:02:00]} 37. Bxe6 {[%emt 0:00:02]} Kg7 {[%emt 0:00:13]} 38. Rb1 {[%emt 0:00:17]} Rh8 {[%emt 0:01:10]} 39. Rb5 {[%emt 0:00:54]} g5 {[%emt 0:00:45]} 40. Rh2 {[%emt 0:00:00]} gxh4 {[%emt 0:00:00]} 41. Rxh4 {[%emt 0:01:32]} Rxh4+ {[%emt 0:02:22]} 42. gxh4 {[%emt 0:01:07]} Kg6 {[%emt 0:00:06]} 43. Bd5 {[%emt 0:02:41]} Ng7 {[%emt 0:00:49]} 44. Bxb7 {[%emt 0:00:24]} Ne6 {[%emt 0:01:27]} 45. Bd5 {[%emt 0:02:14]} Nf4 {[%emt 0:01:51]} 46. Rxa5 {[%emt 0:03:06]} Rb8 {[%emt 0:01:37]} 47. Rb5 {[%emt 0:00:32]} Kh5 {[%emt 0:00:27]} 48. Rb2 {[%emt 0:06:03]} Nxd3 {[%emt 0:06:49]} 49. Rd2 {[%emt 0:02:56]} Nb4 {[%emt 0:01:43]} 50. Bf7+ {[%emt 0:00:22]} Kxh4 {[%emt 0:02:13]} 51. Rxd6 {[%emt 0:00:02]} Kg3 {[%emt 0:01:58]} 52. Rxf6 {[%emt 0:02:08]} Nd3 {[%emt 0:03:33]} 53. Kg1 {[%emt 0:09:59]} Nf4 {[%emt 0:00:02]} 54. Bd5 {[%emt 0:00:15]} Kf3 {[%emt 0:05:22]} 55. a5 {[%emt 0:02:15]} Ke3 {[%emt 0:01:19]} 56. a6 {[%emt 0:02:46]} Rh8 {[%emt 0:01:44]} 57. a7 {[%emt 0:01:05]} Rh3 {[%emt 0:01:16]} 58. Rxf4 {[%emt 0:00:57]} exf4 {[%emt 0:00:08]} 59. a8=Q {[%emt 0:00:04]} f3 {[%emt 0:00:07]} 60. Qa3+ {[%emt 0:00:38]} Kf4 {[%emt 0:00:36]} 61. Qc1+ {[%emt 0:00:10]} 1-0